bitfinex-derivatives/quotes_SOLF0:USTF0_20250114
["timestamp","ask_amount","ask_price","bid_price","bid_amount"]
[1736884039580,5.48,187.44,187.42,2.6689]
[1736884040177,8.1487,187.44,187.41,2.6691]
[1736884041373,2.669,187.42,187.39,2.6694]
[1736884041580,12.30463119,187.4,187.33,7.32805283]
[1736884041777,12.30463119,187.37,187.33,7.32805283]
[1736884042076,17.78463119,187.37,187.33,7.32805283]
[1736884042277,2.6699,187.36,187.33,7.32805283]
[1736884042881,2.6699,187.36,187.3,1.6297]
[1736884043880,2.6699,187.36,187.33,2.6701]
[1736884044980,17.78463119,187.37,187.34,2.6701]
[1736884045177,5.48,187.37,187.34,2.6701]
[1736884045377,5.48,187.37,187.3,1.6297]
[1736884046884,2.6699,187.36,187.33,2.6701]
[1736884049483,10.55392296,187.36,187.33,2.6701]
[1736884051282,7.88402296,187.34,187.33,2.6701]
[1736884052385,2.6699,187.36,187.33,2.6701]
[1736884052580,13.36402296,187.37,187.31,7.88402296]
[1736884052977,16.03382296,187.37,187.32,2.6703]
[1736884053281,13.36402296,187.37,187.31,7.88402296]
[1736884053984,7.88402296,187.35,187.29,7.88402296]
[1736884054883,2.6701,187.34,187.32,2.6704]
[1736884055675,7.88402296,187.33,187.27,1.619]
[1736884056182,7.88402296,187.31,187.3,2.6706]
[1736884059789,7.88402296,187.31,187.25,3.3717]
[1736884059984,7.88402296,187.31,187.24,7.88402296]
[1736884060184,7.88402296,187.29,187.24,7.88402296]
[1736884060388,7.88402296,187.29,187.27,2.671]
[1736884061280,7.88402296,187.29,187.24,7.88402296]
[1736884061281,10.55492296,187.29,187.26,2.6712]
[1736884072097,5.48,187.3,187.24,7.88402296]
[1736884072298,2.6706,187.31,187.26,7.88402296]
[1736884072600,7.88402296,187.32,187.26,7.88402296]
[1736884072901,5.46,187.33,187.28,7.88402296]
[1736884073102,5.46,187.33,187.31,2.6704]
[1736884073799,8.1303,187.33,187.3,2.6706]
[1736884074003,7.88402296,187.32,187.3,2.6706]
[1736884077299,10.55442296,187.32,187.3,2.6706]
[1736884077998,10.55442296,187.32,187.29,2.6708]
[1736884078204,2.6709,187.29,187.24,7.88402296]
[1736884079103,2.6709,187.29,187.26,2.6711]
[1736884084521,7.88402296,187.3,187.28,2.6709]
[1736884084719,2.6706,187.31,187.28,2.6709]
[1736884086022,10.55442296,187.32,187.29,2.6708]
[1736884086920,195.0,187.35,187.26,7.88402296]
[1736884087223,2.6703,187.33,187.28,7.88402296]
[1736884087423,208.34402296,187.35,187.28,7.88402296]
[1736884087623,211.01402296,187.35,187.32,2.6703]
[1736884088423,205.55402296,187.35,187.32,2.6703]
[1736884088619,10.55402296,187.35,187.32,2.6703]
[1736884088818,2.6702,187.34,187.3,2.6706]
[1736884090824,2.6702,187.34,187.28,7.88402296]
[1736884091025,2.6702,187.34,187.31,2.6705]
[1736884095518,10.64067905,187.4,187.26,3.36]
[1736884095519,10.64067905,187.4,187.32,7.88402296]
[1736884095830,7.88402296,187.36,187.3,7.88402296]
[1736884096223,10.55392296,187.36,187.33,2.6701]
[1736884096516,7.88402296,187.36,187.3,7.88402296]
[1736884096828,7.88402296,187.36,187.34,2.6701]
[1736884098127,10.55382296,187.36,187.34,2.6701]
[1736884098329,7.88402296,187.36,187.34,2.6701]
[1736884100227,10.55382296,187.36,187.34,2.6701]
[1736884102329,2.6702,187.34,187.26,32.7572941]
[1736884102535,7.88402296,187.3,187.26,32.7572941]
[1736884103035,7.88402296,187.3,187.26,29.3972941]
[1736884103537,7.88402296,187.3,187.28,2.6709]
[1736884105035,7.88402296,187.3,187.23,7.88402296]
[1736884105233,7.88402296,187.3,187.29,2.6708]
[1736884105432,7.88402296,187.3,187.22,9.06972352]
[1736884105634,7.88402296,187.28,187.22,16.95374648]
[1736884105932,7.88402296,187.28,187.26,2.6711]
[1736884106237,7.88402296,187.28,187.22,16.95374648]
[1736884107241,7.88402296,187.28,187.27,2.6711]
[1736884109140,10.55472296,187.3,187.27,2.6711]
[1736884109941,10.55502296,187.28,187.25,2.6713]
[1736884110136,7.88402296,187.26,187.22,9.06972352]
[1736884110941,7.88402296,187.26,187.22,1.7204]
[1736884111141,7.88402296,187.26,187.24,2.6715]
[1736884112339,3.3283,187.31,187.22,1.7204]
[1736884112545,10.55482296,187.29,187.26,2.6711]
[1736884113339,7.88402296,187.27,187.26,2.6711]
[1736884117449,7.88402296,187.29,187.24,7.88402296]
[1736884117646,10.55462296,187.31,187.29,2.6708]
[1736884118048,4.8069,187.37,187.3,2.6706]
[1736884118245,7.88402296,187.33,187.26,7.88402296]
[1736884118551,7.88402296,187.31,187.26,7.88402296]
[1736884120149,7.88402296,187.31,187.3,2.6706]
[1736884122654,7.88402296,187.31,187.26,7.88402296]
[1736884122855,7.88402296,187.29,187.24,7.88402296]
[1736884123351,7.88402296,187.29,187.27,2.671]
[1736884123950,10.55482296,187.29,187.27,2.671]
[1736884124351,10.55482296,187.29,187.26,2.6712]
[1736884124352,7.88402296,187.29,187.26,2.6712]
[1736884124548,7.88402296,187.27,187.22,1.7204]
[1736884124949,10.55512296,187.27,187.25,2.6713]
[1736884125146,7.88402296,187.27,187.25,2.6713]
[1736884127149,7.88402296,187.27,187.22,1.7204]
[1736884127357,10.55522296,187.27,187.24,2.6715]
[1736884128154,2.6707,187.3,187.26,2.6712]
[1736884128350,7.88402296,187.28,187.26,2.6712]
[1736884128762,7.88402296,187.28,187.24,2.6714]
[1736884128959,7.88402296,187.26,187.22,1.7204]
[1736884129158,7.88402296,187.29,187.22,9.60442296]
[1736884129658,7.88402296,187.29,187.24,2.6715]
[1736884129956,7.88402296,187.29,187.22,9.60442296]
[1736884130157,10.55482296,187.29,187.26,2.6711]
[1736884131757,7.88402296,187.27,187.26,2.6711]
[1736884133259,7.88402296,187.27,187.23,2.6715]
[1736884133856,10.55522296,187.27,187.23,2.6715]
[1736884134362,10.55522296,187.27,187.22,1.7204]
[1736884134661,10.55522296,187.27,187.24,2.6715]
[1736884137665,7.88402296,187.25,187.23,2.6716]
[1736884138352,7.88402296,187.25,187.18,29.39896809]
[1736884138563,7.88402296,187.2,187.18,29.39896809]
[1736884139462,10.55612296,187.2,187.18,29.39896809]
[1736884139656,7.88402296,187.2,187.18,29.39896809]
[1736884140056,2.6724,187.19,187.15,2.6727]
[1736884140360,195.0,187.25,187.13,7.88402296]
[1736884140563,7.88402296,187.2,187.13,7.88402296]
[1736884141364,7.88402296,187.2,187.18,2.6723]
[1736884141767,7.88402296,187.22,187.17,7.88402296]
[1736884141957,13.34402296,187.26,187.21,7.88402296]
[1736884142160,5.46,187.26,187.21,7.88402296]
[1736884142360,5.46,187.26,187.22,2.6717]
[1736884142555,5.46,187.26,187.21,7.88402296]
[1736884143160,5.46,187.26,187.24,2.6714]
[1736884143454,13.34402296,187.26,187.24,2.6714]
[1736884150673,7.88402296,187.26,187.24,2.6714]
[1736884151479,7.88402296,187.26,187.2,7.88402296]
[1736884151679,10.55532296,187.26,187.23,2.6716]
[1736884153580,2.6711,187.27,187.24,2.6714]
[1736884153878,10.55512296,187.27,187.24,2.6714]
[1736884154077,7.88402296,187.25,187.24,2.6714]
[1736884154274,7.88402296,187.25,187.23,2.6716]
[1736884154879,7.88402296,187.25,187.24,2.6715]
[1736884155074,5.48,187.29,187.22,7.88402296]
[1736884155380,7.88402296,187.3,187.24,7.88402296]
[1736884155673,2.6708,187.29,187.22,7.88402296]
[1736884156070,7.88402296,187.28,187.22,7.88402296]
[1736884156469,7.88402296,187.28,187.26,2.6711]
[1736884162482,7.88402296,187.28,187.22,7.88402296]
[1736884162687,7.88402296,187.28,187.27,2.6711]
[1736884163579,5.48,187.31,187.3,2.6706]
[1736884163580,7.88402296,187.31,187.3,2.6706]
[1736884164189,7.88402296,187.31,187.23,1.7165]
[1736884164388,7.88402296,187.31,187.29,2.6708]
[1736884165790,10.55452296,187.31,187.29,2.6708]
[1736884169290,10.55452296,187.31,187.28,2.6709]
[1736884170494,10.55452296,187.31,187.24,7.88402296]
[1736884170693,7.88402296,187.31,187.29,2.6708]
[1736884172495,10.55452296,187.31,187.29,2.6708]
[1736884175695,10.55452296,187.31,187.28,2.6709]
[1736884176791,10.55452296,187.31,187.29,2.6708]
[1736884177899,7.88402296,187.32,187.3,2.6706]
[1736884179794,10.55442296,187.32,187.3,2.6706]
[1736884179995,10.55442296,187.32,187.29,2.6707]
[1736884182998,7.88402296,187.32,187.3,2.6706]
[1736884183697,3.3275,187.36,187.28,7.88402296]
[1736884183995,7.88402296,187.36,187.3,7.88402296]
[1736884184195,7.88402296,187.36,187.23,1.7165]
[1736884184196,7.88402296,187.36,187.32,7.88402296]
[1736884184402,5.48,187.39,187.36,2.6698]
[1736884184403,18.52574744,187.38,187.36,2.6698]
[1736884185390,18.52574744,187.38,187.35,2.6699]
[1736884185391,21.19524744,187.38,187.35,2.6699]
[1736884186395,21.19524744,187.38,187.32,7.88402296]
[1736884186600,21.19524744,187.38,187.34,2.6701]
[1736884190802,18.52574744,187.38,187.34,2.6701]
[1736884191102,2.6697,187.37,187.34,2.6701]
[1736884191901,7.88402296,187.36,187.34,2.6701]
[1736884198108,10.55372296,187.37,187.34,2.6701]
[1736884198310,10.55372296,187.37,187.32,7.88402296]
[1736884198311,7.88402296,187.37,187.32,7.88402296]
[1736884198509,7.88402296,187.37,187.35,2.6699]
[1736884198709,13.31122448,187.38,187.35,2.6699]
[1736884198908,21.19524744,187.38,187.35,2.6699]
[1736884200511,21.19524744,187.38,187.36,2.6698]
[1736884200812,10.64172448,187.38,187.36,2.6698]
[1736884201112,4.8518,187.44,187.34,7.88402296]
[1736884201312,10.55312296,187.42,187.36,7.88402296]
[1736884201509,7.88402296,187.43,187.36,7.88402296]
[1736884201711,7.88402296,187.41,187.29,1.5596]
[1736884201914,10.55352296,187.38,187.33,7.88402296]
[1736884203012,7.88402296,187.38,187.36,2.6698]
[1736884205106,7.88402296,187.38,187.29,9.44362296]
[1736884205107,2.6698,187.36,187.29,9.44362296]
[1736884205416,7.88402296,187.32,187.29,1.5596]
[1736884205608,7.88402296,187.3,187.27,30.97565261]
[1736884205812,7.88402296,187.3,187.27,29.42195261]
[1736884206315,7.88402296,187.3,187.28,2.6708]
[1736884207409,7.88402296,187.3,187.26,100.5277862]
[1736884207615,7.88402296,187.3,187.29,2.6708]
[1736884207815,7.88402296,187.31,187.26,108.41180916]
[1736884208012,7.88402296,187.31,187.3,2.6705]
[1736884208404,7.88402296,187.31,187.26,100.5277862]
[1736884208713,7.88402296,187.31,187.29,2.6708]
[1736884209917,10.55452296,187.31,187.28,2.6709]
[1736884210819,7.88402296,187.31,187.28,2.6709]
[1736884211610,10.55452296,187.31,187.28,2.6709]
[1736884211816,7.88402296,187.31,187.26,100.5277862]
[1736884212015,7.88402296,187.31,187.29,2.6708]
[1736884214818,7.88402296,187.33,187.3,2.6707]
[1736884215118,7.88402296,187.33,187.28,7.88402296]
[1736884215317,2.6702,187.34,187.29,2.6707]
[1736884215519,10.55422296,187.34,187.28,7.88402296]
[1736884216018,2.6703,187.33,187.3,2.6705]
[1736884216216,7.88402296,187.34,187.27,7.88402296]
[1736884216712,10.55412296,187.34,187.27,7.88402296]
[1736884217212,10.55412296,187.34,187.31,2.6704]
[1736884217420,7.4164,187.45,187.33,7.88402296]
[1736884217619,3.1724,187.45,187.39,7.88402296]
[1736884217919,2.6683,187.47,187.43,2.6687]
[1736884218120,5.46,187.47,187.43,7.88402296]
[1736884218315,7.88402296,187.49,187.43,7.88402296]
[1736884218511,5.48,187.48,187.44,2.6686]
[1736884218716,10.55212296,187.49,187.44,2.6686]
[1736884218925,7.88402296,187.47,187.41,7.88402296]
[1736884219426,7.88402296,187.47,187.42,2.6688]
[1736884223923,10.55232296,187.47,187.42,2.6688]
[1736884224123,10.55232296,187.47,187.43,2.6688]
[1736884224924,5.46,187.48,187.43,2.6688]
[1736884225124,13.34402296,187.48,187.43,2.6688]
[1736884225325,16.01222296,187.48,187.43,2.6688]
[1736884225524,13.34402296,187.48,187.45,2.6685]
[1736884225725,5.46,187.48,187.43,7.88402296]
[1736884226121,5.46,187.48,187.35,1.5646]
[1736884226122,5.46,187.5,187.47,2.6682]
[1736884226322,13.34402296,187.5,187.35,1.5646]
[1736884226521,13.34402296,187.5,187.44,7.88402296]
[1736884227223,2.668,187.49,187.45,2.6685]
[1736884227721,2.668,187.49,187.35,1.5646]
[1736884228031,7.88402296,187.42,187.36,7.88402296]
[1736884228424,7.88402296,187.38,187.33,9.57052296]
[1736884228621,7.88402296,187.38,187.32,7.88402296]
[1736884229126,7.88402296,187.38,187.35,2.6699]
[1736884229827,7.88402296,187.36,187.34,2.6701]
[1736884230223,7.88402296,187.36,187.3,7.88402296]
[1736884230624,7.88402296,187.36,187.31,2.6704]
[1736884230925,7.88402296,187.34,187.28,9.51692296]
[1736884231625,7.88402296,187.34,187.3,2.6707]
[1736884232129,5.48,187.36,187.35,2.67]
[1736884233230,5.48,187.36,187.31,7.88402296]
[1736884234332,5.48,187.36,187.34,2.67]
[1736884234525,5.48,187.36,187.31,7.88402296]
[1736884234727,5.48,187.36,187.32,2.6703]
[1736884234931,5.48,187.36,187.31,7.88402296]
[1736884236227,5.48,187.36,187.33,7.88402296]
[1736884236437,7.88402296,187.39,187.33,7.88402296]
[1736884236629,7.88402296,187.39,187.34,2.67]
[1736884236824,7.88402296,187.39,187.33,7.88402296]
[1736884237235,7.88402296,187.37,187.35,2.6699]
[1736884238833,7.88402296,187.37,187.31,7.88402296]
[1736884239031,7.88402296,187.35,187.29,7.88402296]
[1736884239237,7.88402296,187.33,187.27,7.88402296]
[1736884239534,7.88402296,187.31,187.25,7.88402296]
[1736884239736,7.88402296,187.31,187.28,2.6709]
[1736884239936,7.88402296,187.31,187.25,7.88402296]
[1736884241034,5.5,187.34,187.25,7.88402296]
[1736884241236,5.5,187.34,187.23,3.2715]
[1736884241436,5.5,187.34,187.27,12.3187876]
[1736884242139,5.5,187.34,187.32,2.6703]
[1736884244839,5.5,187.34,187.33,2.6702]
[1736884246845,2.6696,187.38,187.35,2.6698]
[1736884247043,12.3187876,187.39,187.3,12.3187876]
[1736884247044,5.5,187.37,187.3,12.3187876]
[1736884247542,5.5,187.37,187.36,2.6698]
[1736884249137,5.5,187.37,187.3,12.3187876]
[1736884249444,5.5,187.37,187.35,2.6699]
[1736884250641,5.5,187.37,187.31,2.6704]
[1736884250849,12.3187876,187.36,187.24,12.3187876]
[1736884251548,2.6703,187.33,187.29,2.6707]
[1736884251848,12.3187876,187.35,187.24,12.3187876]
[1736884252050,12.3187876,187.35,187.23,3.2715]
[1736884252246,2.6706,187.31,187.26,2.6711]
[1736884252449,12.3187876,187.32,187.23,1.6479]
[1736884254148,2.6707,187.3,187.27,2.671]
[1736884256847,12.3187876,187.32,187.23,1.6479]
[1736884257154,2.6706,187.31,187.28,2.6709]
[1736884260647,12.3187876,187.32,187.28,2.6709]
[1736884260851,2.6707,187.3,187.28,2.6709]
[1736884261657,10.55959646,187.3,187.28,2.6709]
[1736884261858,7.88889646,187.3,187.24,7.88889646]
[1736884262059,7.88889646,187.3,187.28,2.6709]
[1736884263960,7.88889646,187.3,187.24,7.88889646]
[1736884264261,10.55929646,187.32,187.29,2.6708]
[1736884265055,7.88889646,187.3,187.22,100.44691945]
[1736884265357,7.88889646,187.28,187.22,100.44691945]
[1736884265657,7.88889646,187.26,187.22,100.44691945]
[1736884267163,7.88889646,187.26,187.25,2.6713]
[1736884268555,7.88889646,187.26,187.18,1.7054]
[1736884268865,7.88889646,187.21,187.16,7.3287404]
[1736884269064,2.6718,187.22,187.19,2.6722]
[1736884269259,7.88889646,187.2,187.16,7.3287404]
[1736884269657,5.48,187.23,187.16,15.21763686]
[1736884269864,5.48,187.23,187.2,7.88889646]
[1736884270161,13.36889646,187.23,187.2,2.672]
[1736884270359,13.36889646,187.23,187.18,7.88889646]
[1736884271063,13.36889646,187.23,187.21,2.6718]
[1736884272261,5.48,187.23,187.22,2.6718]
[1736884273367,5.48,187.27,187.2,7.88889646]
[1736884273664,5.48,187.27,187.26,2.6712]
[1736884273861,7.88889646,187.28,187.22,7.88889646]
[1736884274458,7.88889646,187.28,187.23,2.6715]
[1736884274660,7.88889646,187.28,187.22,7.88889646]
[1736884274863,24.01483487,187.3,187.24,7.88889646]
[1736884276368,7.88889646,187.28,187.22,7.88889646]
[1736884277068,7.88889646,187.28,187.26,2.6711]
[1736884277768,10.55989646,187.28,187.24,2.6714]
[1736884277968,7.88889646,187.25,187.18,7.88889646]
[1736884278162,7.88889646,187.23,187.21,2.6719]
[1736884279665,2.6715,187.24,187.21,2.6719]
[1736884279970,12.336685,187.25,187.21,2.6719]
[1736884280172,15.008085,187.25,187.21,2.6719]
[1736884280469,12.336685,187.25,187.22,2.6717]
[1736884280769,5.48,187.26,187.17,3.3016]
[1736884280961,5.48,187.27,187.17,3.3016]
[1736884281169,5.48,187.27,187.25,2.6713]
[1736884281363,5.48,187.27,187.17,3.3016]
[1736884281973,5.48,187.27,187.25,2.6713]
[1736884282673,5.48,187.27,187.17,3.3016]
[1736884283471,5.48,187.27,187.25,2.6713]
[1736884284074,5.48,187.27,187.26,2.6712]
[1736884284966,5.48,187.27,187.17,3.3016]
[1736884285172,5.48,187.27,187.25,2.6713]
[1736884285873,5.48,187.27,187.26,2.6712]
[1736884286068,10.64593841,187.3,187.19,12.336685]
[1736884286272,16.12593841,187.3,187.22,12.336685]
[1736884286572,10.64593841,187.3,187.29,2.6708]
[1736884286775,198.1517,187.35,187.23,1.6519]
[1736884286966,5.48,187.34,187.24,3.1618]
[1736884287567,8.1501,187.34,187.24,3.1618]
[1736884288073,5.48,187.34,187.31,2.6704]
[1736884288472,5.48,187.34,187.24,3.1618]
[1736884288971,12.336685,187.33,187.23,1.6519]
[1736884289172,2.6708,187.29,187.26,2.6712]
[1736884289371,12.336685,187.3,187.26,2.6712]
[1736884289972,2.6708,187.29,187.26,2.6712]
[1736884290171,12.336685,187.3,187.27,2.6711]
[1736884291074,15.007385,187.3,187.27,2.6711]
[1736884293278,12.336685,187.3,187.23,1.6519]
[1736884293483,2.6708,187.29,187.26,2.6712]
[1736884294274,2.671,187.28,187.25,2.6713]
[1736884294475,12.336685,187.3,187.25,2.6713]
[1736884295878,2.671,187.28,187.25,2.6713]
[1736884296582,2.6715,187.25,187.2,2.6721]
[1736884296776,12.336685,187.26,187.17,8.9158404]
[1736884297079,5.48,187.27,187.17,8.9158404]
[1736884297475,5.48,187.27,187.17,1.5871]
[1736884297782,5.48,187.27,187.23,2.6716]
[1736884298878,8.1512,187.27,187.23,2.6716]
[1736884299078,5.48,187.27,187.23,2.6716]
[1736884300184,2.6712,187.26,187.23,2.6716]
[1736884301283,12.336685,187.29,187.17,1.5871]
[1736884301484,2.6711,187.27,187.24,2.6715]
[1736884301980,8.1508,187.29,187.26,2.6711]
[1736884302180,5.48,187.29,187.19,12.336685]
[1736884302873,2.6709,187.28,187.22,2.6718]
[1736884303078,5.48,187.29,187.19,12.336685]
[1736884303380,7.89237061,187.26,187.2,7.89237061]
[1736884303584,2.6714,187.25,187.18,7.3287404]
[1736884303780,7.89237061,187.24,187.19,7.89237061]
[1736884303984,7.89237061,187.24,187.18,7.3287404]
[1736884304379,7.89237061,187.22,187.18,7.3287404]
[1736884304586,7.89237061,187.2,187.16,7.3287404]
[1736884305490,10.56457061,187.2,187.16,10.0013404]
[1736884305787,10.56457061,187.2,187.16,2.6726]
[1736884306083,5.48,187.23,187.15,3.2397]
[1736884306282,5.48,187.23,187.15,11.13207061]
[1736884306481,13.37237061,187.23,187.17,7.89237061]
[1736884306786,16.04407061,187.23,187.19,2.6721]
[1736884307380,13.37237061,187.23,187.18,2.6723]
[1736884307581,5.48,187.23,187.15,3.2397]
[1736884307985,5.48,187.23,187.19,2.6721]
[1736884308688,5.48,187.23,187.2,2.6721]
[1736884309688,8.1517,187.23,187.2,2.6721]
[1736884310385,5.48,187.23,187.15,3.2397]
[1736884310576,2.6719,187.22,187.18,2.6723]
[1736884311585,2.6719,187.22,187.19,2.6722]
[1736884311788,195.0,187.26,187.15,3.2397]
[1736884312086,195.0,187.26,187.19,2.6721]
[1736884312283,197.6713,187.26,187.17,12.33547675]
[1736884312689,2.6713,187.26,187.22,2.6717]
[1736884313489,2.6714,187.25,187.22,2.6717]
[1736884313983,12.33547675,187.25,187.15,3.2397]
[1736884314185,2.6715,187.24,187.15,3.2397]
[1736884314988,2.6715,187.24,187.21,2.6719]
[1736884315791,2.6715,187.24,187.15,3.2397]
[1736884315792,12.33547675,187.25,187.15,3.2397]
[1736884316179,5.5,187.26,187.13,8.9870404]
[1736884316180,12.33547675,187.22,187.13,8.9870404]
[1736884316986,12.33547675,187.22,187.13,1.6583]
[1736884317380,2.6721,187.2,187.17,2.6724]
[1736884317682,12.33547675,187.19,187.12,100.59505521]
[1736884318088,2.6725,187.18,187.14,2.6729]
[1736884318290,17.83547675,187.19,187.14,2.6729]
[1736884318786,2.6726,187.17,187.14,2.6729]
[1736884318990,17.83547675,187.19,187.13,2.6731]
[1736884319184,12.33547675,187.16,187.07,29.31496162]
[1736884319385,12.33547675,187.13,187.07,2.6739]
[1736884319785,2.6734,187.11,187.07,2.6739]
[1736884320187,2.6734,187.11,187.06,7.3287404]
[1736884320381,5.5,187.12,187.06,7.3287404]
[1736884320590,5.5,187.12,187.02,30.92366162]
[1736884320893,12.33547675,187.09,187.02,30.92366162]
[1736884321084,12.33547675,187.06,187.02,29.31496162]
[1736884321995,12.33547675,187.06,186.99,3.1777]
[1736884322388,12.33547675,187.06,187.02,2.6746]
[1736884322800,12.33547675,187.06,186.99,3.1777]
[1736884324492,12.33547675,187.06,187.03,2.6744]
[1736884324695,12.33547675,187.06,186.99,3.1777]
[1736884325394,15.00917675,187.09,186.99,3.1777]
[1736884325591,17.83547675,187.09,186.99,3.1777]
[1736884325996,17.83547675,187.09,187.06,2.674]
[1736884327197,17.83547675,187.09,186.99,3.1777]
[1736884327398,5.5,187.09,187.08,2.6738]
[1736884327598,5.5,187.11,187.01,12.33547675]
[1736884327996,5.5,187.11,187.04,2.6744]
[1736884328202,5.5,187.11,187.01,12.33547675]
[1736884328595,5.5,187.11,187.08,2.6737]
[1736884328795,5.5,187.11,187.01,12.33547675]
[1736884329295,5.5,187.11,187.1,2.6735]
[1736884330301,5.52,187.13,187.11,2.6733]
[1736884330502,17.85547675,187.14,187.04,12.33547675]
[1736884330697,17.85547675,187.14,187.05,1.5804]
[1736884331204,5.5,187.16,187.05,1.5804]
[1736884331404,5.5,187.16,187.06,1.6957]
[1736884332304,5.5,187.16,187.09,2.6737]
[1736884332499,5.5,187.16,187.06,1.6957]
[1736884333100,5.5,187.16,187.14,2.6728]
[1736884333295,31.73004314,187.17,187.14,2.6728]
[1736884334004,12.33547675,187.2,187.1,12.33547675]
[1736884334397,12.33547675,187.2,187.13,2.6731]
[1736884334705,12.33547675,187.2,187.1,12.33547675]
[1736884336101,12.33547675,187.2,187.17,2.6724]
[1736884336908,12.33547675,187.2,187.18,2.6723]
[1736884337108,12.33547675,187.23,187.1,12.33547675]
[1736884337408,17.85547675,187.23,187.13,12.33547675]
[1736884337603,17.85547675,187.23,187.19,2.6721]
[1736884338809,20.52717675,187.23,187.19,2.6721]
[1736884339111,5.5,187.22,187.13,12.33547675]
[1736884339313,5.5,187.22,187.2,2.672]
[1736884342016,5.5,187.22,187.21,2.6719]
[1736884344211,12.33547675,187.23,187.21,2.6719]
[1736884349023,2.6721,187.21,187.16,2.6726]
[1736884349321,12.33547675,187.2,187.1,12.33547675]
[1736884349622,15.00757675,187.2,187.17,2.6724]
[1736884350919,15.00757675,187.2,187.18,2.6724]
[1736884351421,12.33547675,187.2,187.18,2.6724]
[1736884355327,7.89852072,187.19,187.18,2.6724]
[1736884355728,7.89852072,187.19,187.09,1.5536]
[1736884355927,2.6722,187.2,187.17,2.6725]
[1736884357226,7.89852072,187.18,187.17,2.6725]
[1736884358925,7.89852072,187.18,187.16,2.6726]
[1736884359126,7.89852072,187.17,187.16,2.6726]
[1736884363031,195.0,187.27,187.15,7.89852072]
[1736884363224,7.89852072,187.21,187.15,7.89852072]
[1736884363631,7.89852072,187.21,187.2,2.672]
[1736884365230,7.89852072,187.23,187.19,7.89852072]
[1736884365830,5.48,187.26,187.19,7.89852072]
[1736884365831,8.1513,187.26,187.19,7.89852072]
[1736884366033,7.89852072,187.25,187.19,7.89852072]
[1736884366633,7.89852072,187.25,187.23,2.6715]
[1736884367136,10.56992072,187.25,187.22,2.6718]
[1736884367432,7.89852072,187.23,187.22,2.6718]
[1736884371040,2.6714,187.25,187.22,2.6718]
[1736884371234,7.89852072,187.23,187.22,2.6718]
[1736884376239,7.89852072,187.23,187.16,1.5906]
[1736884376439,7.89852072,187.21,187.16,1.5906]
[1736884376836,7.89852072,187.19,187.18,2.6722]
[1736884380634,7.89852072,187.21,187.16,9.48912072]
[1736884380839,5.46,187.26,187.16,9.48912072]
[1736884381144,7.89852072,187.22,187.16,9.48912072]
[1736884381343,7.89852072,187.22,187.2,2.672]
[1736884381741,7.89852072,187.22,187.21,2.6719]
[1736884382944,7.89852072,187.22,187.19,2.6721]
[1736884383144,7.89852072,187.19,187.16,1.5906]
[1736884384343,7.89852072,187.19,187.17,2.6725]
[1736884384547,7.89852072,187.19,187.14,3.3949]
[1736884384746,7.89852072,187.17,187.13,100.58830578]
[1736884385244,7.89852072,187.17,187.16,2.6727]
[1736884386643,7.89852072,187.17,187.13,100.58830578]
[1736884386843,7.89852072,187.17,187.15,2.6728]
[1736884387350,7.89852072,187.17,187.13,100.58830578]
[1736884387649,7.89852072,187.17,187.16,2.6727]
[1736884393051,7.89852072,187.17,187.15,2.6727]
[1736884393254,7.89852072,187.17,187.13,100.58830578]
[1736884394150,7.89852072,187.17,187.16,2.6727]
[1736884394652,7.89852072,187.17,187.13,100.58830578]
[1736884394960,7.89852072,187.15,187.13,100.58830578]
[1736884396060,7.89852072,187.15,187.09,3.26]
[1736884396258,7.89852072,187.13,187.12,2.6731]
[1736884401864,7.89852072,187.14,187.13,2.6731]
[1736884402362,7.89852072,187.14,187.12,2.6731]
[1736884405668,7.89852072,187.14,187.13,2.6731]
[1736884406260,195.0,187.26,187.16,2.6727]
[1736884406464,7.89852072,187.19,187.12,7.89852072]
[1736884406967,7.89852072,187.19,187.14,7.89852072]
[1736884407667,7.89852072,187.19,187.17,2.6725]
[1736884409781,10.57072072,187.19,187.16,2.6726]
[1736884410778,10.57112072,187.17,187.14,2.6729]
[1736884411082,7.89852072,187.17,187.1,7.89852072]